Cogmind - Beta 14 @@@ ROGUE MODE // 2024.09.13 @ 22:51:17 Player: J1ang-5h1 Result: Destroyed by S-10 Pest with Light Assault Rifle Performance ------------- Evolutions (0) 0 Regions Visited (2) 400 Robots Destroyed (48) 240 Value Destroyed (1013) 1013 Prototype IDs (2) 40 Alien Tech Used (0) 0 Bonus (2) 2 TOTAL SCORE: 1695 Bonus ------- High Alert Combat Kills 2 Cogmind --------- Core Integrity 0/250 Matter 134/300 Energy 125/125 System Corruption 1% Temperature Cool (0) Movement Treading (160) Location -10/Mines Parts ------- > --- POWER (1) -------- Light Ion Engine > --- PROPULSION (2) --- Improved Treads Improved Treads > --- UTILITY (2) ------ Large Storage Unit Light Armor Plating > --- WEAPON (2) ------- Grenade Launcher Hammer > --- INVENTORY (15) --- Improved Treads Improved Treads Wheel Improved Heat Sink High-capacity Battery (250) Structural Scanner Sensor Array Improved Terrain Scanner Seismic Detector Propulsion Shielding Light Armor Plating Heavy EM Pulse Gun Heavy EM Pulse Gun Grenade Launcher Peak State ------------ > --- POWER ------------ Ion Engine > --- PROPULSION ------- Improved Treads Improved Treads > --- UTILITY ---------- Large Storage Unit Light Armor Plating > --- WEAPON ----------- Heavy EM Pulse Gun Light Cannon > --- INVENTORY -------- Improved Treads Improved Treads Wheel High-capacity Battery Structural Scanner Sensor Array Improved Terrain Scanner Seismic Detector Light Armor Plating Light Armor Plating Heavy EM Pulse Gun Grenade Launcher Grenade Launcher Datajack Hammer [Rating: 12] Favorites ----------- Power Ion Engine Engine Ion Engine Propulsion Improved Treads Treads Improved Treads Leg Aluminum Leg Utility Large Storage Unit Device Seismic Detector Storage Large Storage Unit Protection Light Armor Plating Weapon Assault Rifle Energy Gun Medium Laser Ballistic Gun Assault Rifle Ballistic Cannon Light Cannon Launcher Grenade Launcher Special Weapon Mining Laser Impact Weapon Hammer Build | -11 -10 -10 ------- Run | Yrd Mat Min Slots Evolved . | . . . Power . | . . . Propulsion . | . . . Utility . | . . . Weapon . | . . . Parts Attached 41 | 2 35 4 Power 3 | . 2 1 Engine 3 | . 2 1 Core . | . . . Reactor . | . . . Propulsion 8 | . 8 . Treads 8 | . 8 . Leg . | . . . Wheel . | . . . Hover . | . . . Flight . | . . . Utility 12 | 2 9 1 Device 5 | 2 3 . Storage 3 | . 3 . Processor . | . . . Hackware . | . . . Protection 4 | . 3 1 Artifact . | . . . Weapon 18 | . 16 2 Energy Gun 3 | . 3 . Energy Cannon . | . . . Ballistic Gun 5 | . 5 . Ballistic Cannon 2 | . 2 . Launcher 1 | . . 1 Special Weapon 4 | . 4 . Impact Weapon 3 | . 2 1 Slashing Weapon . | . . . Piercing Weapon . | . . . Special Melee Weapon . | . . . Unidentified Prototypes . | . . . Parts Lost 5 | . 4 1 Power 1 | . 1 . Propulsion . | . . . Utility 1 | . 1 . Weapon 3 | . 2 1 Highest Loss Streak 3 | . 3 1 To Critical Strikes . | . . . Average Slot Usage (%) 99 | . 99 100 Engine 13 | . 13 14 Treads 26 | . 26 28 Device 6 | . 8 . Storage 15 | . 15 14 Protection 6 | . 4 14 Energy Gun 1 | . 1 . Ballistic Gun 9 | . 10 . Ballistic Cannon 7 | . 6 14 Launcher 1 | . . 10 Impact Weapon 6 | . 7 3 Peak Build Rating 12 | 9 12 11 Average Rating 9 | 6 9 11 On Entrance 8 | 6 8 11 Naked Turns . | . . . Heaviest Build 34 | 14 34 34 Greatest Support 46 | 20 46 46 Greatest Overweight (x) . | . . . Average Overweight (x) . | . . . Largest Inventory Capacity 15 | 8 15 15 Average Capacity 14 | 8 14 15 Most Carried 15 | 8 15 15 Average Carried 12 | 7 12 14 Final Capacity 15 | 8 15 15 Final Carried 15 | 8 15 14 Class Distribution -------------------- 100% | Mutant Dominant Class ---------------- Mutant | -10/Materials Mutant | -10/Mines Resources | -11 -10 -10 ----------- Run | Yrd Mat Min Matter Collected 977 | 230 676 71 Remotely . | . . . Salvage Created 1436 | 164 1179 93 Parts 77 | 19 45 13 Haulers Intercepted 2 | . 2 . Recyclers Shooed . | . . . Parts Field Recycled . | . . . Retrieved Matter . | . . . Parts Self-Destructed . | . . . Prevented . | . . . Kills | -11 -10 -10 ------- Run | Yrd Mat Min Combat Hostiles Destroyed 41 | . 23 18 Melee 5 | . 5 . Guns 13 | . 13 . Cannons 1 | . . 1 AOE 17 | . . 17 Classes Destroyed 9 | 2 5 2 Worker 4 | . 4 . Builder 1 | . 1 . Tunneler 5 | 5 . . Hauler 2 | . 2 . Recycler 1 | 1 . . Watcher 3 | . 3 . Swarmer 9 | . . 9 Grunt 23 | . 23 . Assembled 9 | . . 9 Best Kill Streak 6 | 4 3 6 Combat Bots Only 6 | . 2 6 Max Kills in Single Turn 3 | 2 2 3 Gunslinging . | . . . Exploded 3 | . . 3 Melee 1 | . 1 . Uniques/NPCs Destroyed . | . . . Combat | -11 -10 -10 -------- Run | Yrd Mat Min Hostile Shots Fired 171 | . 142 29 Missed 43 | . 34 9 Damage Taken 1661 | . 1346 315 Core 256 | . 214 42 Absorbed by Shields . | . . . Regen/Repaired (Parts) 124 | . 124 . Core Remaining (%) 100 | 100 . . Volleys Fired 132 | 10 102 20 Largest 2 | 2 2 2 Hottest 120 | 60 120 65 Shots Fired 201 | 20 158 23 Gun 160 | 20 140 . Cannon 12 | . 7 5 Launcher 18 | . . 18 Special 11 | . 11 . Kinetic 120 | 10 105 5 Thermal 53 | 10 43 . Explosive 18 | . . 18 Electromagnetic 10 | . 10 . Robot Hit Streak 20 | 4 20 7 Robot Miss Streak 6 | 3 6 3 Penetration Max . | . . . Secondary Targets 1 | . 1 . Max Gunslinging Chain 1 | . 1 . Shots Hit Robots 147 | 10 127 10 Core Hits 81 | 7 41 33 Critical Kills 1 | . 1 . Critical Parts Destroyed 7 | . 7 . Critical Strikes 8 | . 8 . Destroy 1 | . 1 . Smash 7 | . 7 . Melee Attacks 43 | . 41 2 Impact 43 | . 41 2 Slashing . | . . . Piercing . | . . . Sneak Attacks 2 | . 2 . Combat Hostiles 1 | . 1 . Follow-up Attacks . | . . . Damage Inflicted 3435 | 136 2185 1114 Guns 1375 | 136 1239 . Cannons 125 | . 67 58 Explosions 1006 | . . 1006 Melee 918 | . 879 39 Ramming 11 | . . 11 Kinetic 1103 | 83 962 58 Thermal 313 | 53 260 . Explosive 1006 | . . 1006 Electromagnetic 84 | . 84 . Impact 918 | . 879 39 Slashing . | . . . Piercing . | . . . Highest Corruption 1 | . 1 1 Average Corruption 1 | . 1 1 Corruption Purged . | . . . Corruption Blocked . | . . . Effects 8 | . 4 4 Message Errors 1 | . . 1 Matter Fused 2 | . 1 1 Heat Flow Errors 1 | . 1 . Parts Rejected 1 | . 1 . Data Loss (minor) 2 | . 1 1 Misfires 1 | . . 1 Overload Shots . | . . . Overflow Damage 315 | . 282 33 Projectiles . | . . . Explosions 14 | . . 14 Melee 301 | . 282 19 Knockbacks 8 | . 6 2 Impact 4 | . 4 . Kinetic 3 | . 1 2 Secondary 1 | . 1 . Self-Inflicted Damage 99 | . . 99 Shots 5 | . . 5 Rammed 2 | . 1 1 Targets Rammed 2 | . 1 1 Kicked . | . . . Crushed . | . . . Highest Temperature 286 | . 286 12 Average Temperature 80 | . 85 8 Received Heat Transfer 830 | . 810 20 Effects 2 | . 2 . Energy Bleed 2 | . 2 . Siege Activations . | . . . Robots Corrupted 7 | . 7 . Combat Hostiles 5 | . 5 . Parts Fried 10 | . 10 . Impact Corruptions 13 | . 12 1 Robots Melted . | . . . Combat Hostiles . | . . . Parts Melted . | . . . Heat Transferred 902 | 125 777 . Parts Sabotaged . | . . . Parts Stolen . | . . . Parts Stripped . | . . . Power Chain Reactions . | . . . Alert | -11 -10 -10 ------- Run | Yrd Mat Min Peak Influence 427 | 30 363 427 Initial 127 | . 19 127 Average 184 | 16 179 237 Maximum Alert Level 2 | . 1 2 Low Security (%) 54 | 100 55 39 Level 1 42 | . 44 40 Level 2 3 | . . 20 Level 3 . | . . . Level 4 . | . . . Level 5 . | . . . High Security . | . . . Max Security . | . . . Squads Dispatched 9 | . 9 . Investigation 6 | . 6 . Extermination . | . . . Reinforcement 3 | . 3 . Assault . | . . . Garrison . | . . . Intercept . | . . . Searches Triggered . | . . . Construction Impeded . | . . . Haulers Reinforced . | . . . Active Scanning Responses . | . . . Cargo Convoy Interrupts . | . . . Stealth | -11 -10 -10 --------- Run | Yrd Mat Min Distress Signals . | . . . Communications Jammed . | . . . Distress Signals . | . . . Times Spotted 60 | . 36 24 Peak Tracking Total 12 | . 3 12 Tactical Retreats 5 | . 4 1 Traps | -11 -10 -10 ------- Run | Yrd Mat Min Traps Triggered 2 | . 2 . Indirectly . | . . . Trap Hack Attempts . | . . . Triggered . | . . . Disarmed . | . . . Reprogrammed . | . . . Reused . | . . . Traps Extracted . | . . . Installed . | . . . Triggered . | . . . Machines | -11 -10 -10 ---------- Run | Yrd Mat Min Machines Disabled 1 | . 1 . Max in Single Turn 1 | . 1 . Machines Repaired . | . . . Machines Dismantled . | . . . Machines Sabotaged . | . . . Overloaded Fab Kills . | . . . Hacking | -11 -10 -10 --------- Run | Yrd Mat Min Machines Accessed 8 | . 8 . Terminals 5 | . 5 . Fabricators . | . . . Repair Stations 1 | . 1 . Recycling Units 2 | . 2 . Scanalyzers . | . . . Garrison Access . | . . . Total Hacks 27 | . 27 . Successful 14 | . 14 . Failed 12 | . 12 . Catastrophic 2 | . 2 . Database Lockouts 1 | . 1 . Manual 14 | . 14 . Terminals 14 | . 14 . Fabricators . | . . . Repair Stations 8 | . 8 . Recycling Units 5 | . 5 . Scanalyzers . | . . . Garrison Access . | . . . Terminal Hacks 4 | . 4 . Robot Analysis 2 | . 2 . Prototype ID Bank 1 | . 1 . Hauler Manifests 1 | . 1 . Fabricator Hacks . | . . . Repair Station Hacks 5 | . 5 . Scan Component 3 | . 3 . Repair 2 | . 2 . Recycling Unit Hacks 2 | . 2 . Report Inventory 2 | . 2 . Scanalyzer . | . . . Garrison Access Hacks . | . . . Unauthorized Hacks 3 | . 3 . Terminals 1 | . 1 . Botnet 1 | . 1 . Fabricators . | . . . Repair Stations . | . . . Recycling Units 2 | . 2 . Tunnel 2 | . 2 . Scanalyzers . | . . . Garrison Access . | . . . Data Cores Recovered . | . . . Used . | . . . Hacking Detections 8 | . 8 . Full Trace Events 2 | . 2 . Feedback Events 1 | . 1 . Corruption 1 | . 1 . Feedback Blocked . | . . . Robot Schematics Acquired . | . . . Robots Built . | . . . Authchips . | . . . Time . | . . . Total Robot Build Rating . | . . . Part Schematics Acquired . | . . . Parts Built . | . . . Authchips . | . . . Time . | . . . Total Part Build Rating . | . . . Parts Repaired 2 | . 2 . Time 64 | . 64 . Parts Recycled . | . . . Recycled Matter . | . . . Retrieved Matter . | . . . Retrieved Components . | . . . Parts Scanalyzed . | . . . Part Schematics Acquired . | . . . Parts Damaged . | . . . Bothacking | -11 -10 -10 ------------ Run | Yrd Mat Min Used RIF Installer . | . . . Robots Hacked . | . . . Non-combat . | . . . Combat . | . . . Robot Hacks Applied . | . . . Relay Couplers Released . | . . . Fabnet Peak Effective % . | . . . Robots Rewired . | . . . Allies Hacked . | . . . Hacks Repelled . | . . . Allies | -11 -10 -10 -------- Run | Yrd Mat Min Total Allies . | . . . Largest Group . | . . . Highest-Rated Group . | . . . Highest-Rated Ally . | . . . Total Orders . | . . . Ally Attacks . | . . . Total Damage . | . . . Kills . | . . . Allies Corrupted . | . . . Allies Melted . | . . . Intel | -11 -10 -10 ------- Run | Yrd Mat Min Robot Analysis Total 2 | . 2 . Derelict Logs Recovered 1 | . . 1 Drone Launches . | . . . Drone Recoveries . | . . . Exploration | -11 -10 -10 ------------- Run | Yrd Mat Min Turns Passed 3454 | 95 2801 558 Spaces Moved 1628 | 21 1294 313 Core . | . . . Treads 1538 | . 1225 313 Legs 90 | 21 69 . Wheels . | . . . Hover . | . . . Flight . | . . . Fastest Speed 120 | 120 120 160 Average Speed 157 | 120 157 160 Slowest Speed 160 | 120 160 160 Overloaded Moves . | . . . Propulsion Burnouts . | . . . Robots Hopped . | . . . Cave-ins Triggered . | . . . Exploration Rate (%) 55 | 3 97 66 Regions Visited 2 Branch Regions 1 Pre-discovered Areas 2 | . 2 . Known Exits Taken . | . . . Unknown Exits Taken 2 | 1 1 . Scrap Searched 1 | . . 1 Spaces Dug 7 | . 7 . Terrain Destroyed 121 | . 10 111 Melee 2 | . 2 . Projectile 8 | . 8 . AOE 111 | . . 111 Terrain Rammed . | . . . Walls Destroyed . | . . . Machines Disabled . | . . . Actions | -11 -10 -10 --------- Run | Yrd Mat Min Total 2211 | 69 1797 345 Wait 322 | 35 285 2 Move 1626 | 20 1293 313 Hop . | . . . Pick Up 25 | 2 22 1 Fast Attach 6 | 1 5 . Attach 4 | . 3 1 Detach . | . . . Swap 31 | 1 27 3 Drop 20 | . 18 2 Fire 132 | 10 102 20 Melee 43 | . 41 2 Ram . | . . . Kick . | . . . Crush 2 | . 1 1 Escape Stasis . | . . . Rewire . | . . . Trap . | . . . Miscellaneous . | . . . Route ------- -11/Scrapyard -10/Materials (discovered 5 exits: [*Mat x3] / [*Min] / [*Sub]) -10/Mines History --------- Turn | Location | Event 14 | -11/Scrapyard | Discovered new exit (range 2) 96 | -11/Scrapyard | Entered Materials 303 | -10/Materials | Build established: Mutant 337 | -10/Materials | Discovered new exit (range 13) 712 | -10/Materials | Discovered new exit (range 16) 1138 | -10/Materials | Lost 3 parts (1p1u1w) 1384 | -10/Materials | Core integrity fell below 50% 1476 | -10/Materials | Central database locked down 1549 | -10/Materials | Discovered new exit (range 3) 1745 | -10/Materials | Discovered new exit (range 15) 1955 | -10/Materials | Discovered new exit (range 16) 2277 | -10/Materials | Core integrity fell below 20% 2406 | -10/Materials | Repaired Imp. Treads 2439 | -10/Materials | Repaired Imp. Treads 2897 | -10/Materials | Entered Mines 3014 | -10/Mines | Assembled infested the area 3019 | -10/Mines | Assisted by a Guerilla fighting off Assembled 3128 | -10/Mines | Learned Materials stockpile data 3455 | -10/Mines | Destroyed by S-10 Pest with Light Assault Rifle Last Messages --------------- 03192_ Acquired 3 matter. 03202_ Acquired 5 matter. 03289_ T-07 Excavator is excavating. 03368_ Searching scrap... 03368_ Found Assault Rifle. 03368_ Found Datajack. 03368_ Found Propulsion Shielding. 03368_ Found Med. Matter Pod. 03368_ Found 34 Matter. 03369_ Acquired 34 matter. 03373_ System corrupted: Matter fused (-5). 03373_ Dropped Lgt. Armor Plating. 03375_ Acquired Propulsion Shielding. 03432_ Acquired 24 matter. 03436_ Dropped Ion Engine. 03450_ Lgt. Cannon destroyed. 03451_ Destroyed Flight Unit. 03451_ S-10 Pest system corrupted by crushing effect. 03453_ S-10 Pest misfires. Map ----- +----------------------------------------------------+ | | | | | ?????????????????????????????????????? | | ?????????????????????????????????????? | | ####?????????????????????????????????? | | ##????????????????????????????????? | | #????????????????????????????????? | | #????????????????????????????????? | | #????????????????????????????????? | | # #????????????????????????????????? | | # #????????????????????????????????? | | ## #????????????????????????????????? | | ??###????????????????????#???????????? | | ????????????????????????# #??????????? | | ???????????????????????? ??????????? | | ???????????????????????? ??????????? | | ???????????????????????? ??????????? | | ???????????????????????? %??????????? | | ???????????????????????? ??????????? | | ???????????????????????? #??????????? | | ????????????????#####???# #??????????? | | ???????????????? #???# #???###????? | | ????????#####???? #???# #?? ?????? | | ##?????## #????# #???# ## ???????? | | #?????# #????# #???# s ?????????? | | #?????# ????## #???#@#??????????? | | #?????# #???## ##### #??????????? | | #??????# ##### | #??????????? | | #?????## ! * #####??????????? | | #????## = #??????????????? | | ###### #### ## " ##??????????????? | | #??# ######???????????????? | | ####### % #?# #????????????????????? | | ??????## % ### #????????????????????? | | ???????# #????????????????????? | | ??????? %### #????????????????????? | | ?????? !# # ????????????????????? | | ?????? *# ##????????????????????? | | ????? ##?????????????????????? | | ????? % ###???????????????????? | | ????## ###= ????????????????????? | | ?????####??%% ????????????????????? | | ???????????# ####???????????????????? | | ????????### # ###??????????????????? | | ???????# * # #??????????????????? | | ?????## #???????????????????? | | ?????# #????????????????????? | | ?##### #????????????????????? | | ?# #????????????????????? | | ?# ## # #??????????????????????? | +----------------------------------------------------+ Best States ------------- Heat Dissipation 25 Energy Generation 10 Energy Capacity 500 Matter Stores 300 Matter Capacity 300 Sight Range 16 Terrain Scan Density 10 Armor Coverage 150 Evasion (%) 55 Recoil Reduction 2 Item Schematics ----------------- None Robot Schematics ------------------ None Fabricated ------------ Nothing Alien Tech Used ----------------- None Achievements -------------- None Challenges ------------ None Game ------ Seed MagneticPersonalSource Manual? 0 Play Time 00:25:53 Cumulative 289.3 hours Start 2024.09.13 @ 22:25:01 End 2024.09.13 @ 22:51:17 Sessions 1 Manual Loads 0 Difficulty Rogue Special Mode None Game No. 211 Rogue 201 Adventurer 0 Explorer 10 Win Type - Total 3 Types 3/0/0/0/0/0/0/0/0 Lore% 75 Gallery% 72 Achievement% 55 Wizard Run 0 Options --------- Layout 2 ASCII 0 Keyboard 0 Movement Arrows Keybinds 1 Fullscreen 1 Font 24/Smallcaps Map View 50x44 Zoom Use 0% Tactical HUD 1 Map Filters NONE Filters NONE Steam 1 RUN: 8314bb81-055d-4cc3-a871-fbc278b1c774